[Event "22nd ETCC Women 2019"]
[Site "Batumi"]
[Date "2019.10.30"]
[Round "6.19"]
[White "Petrova, Kristyna"]
[Black "Johnsen, Sylvia"]
[Result "1-0"]
[ECO "E06"]
[WhiteElo "2259"]
[BlackElo "1898"]
[Annotator "NA"]
[PlyCount "91"]
[EventDate "2019.10.24"]
[EventType "team-tourn"]
[EventCountry "GEO"]
[SourceTitle "playchess.com"]
[Source "ChessBase"]
[SourceQuality "1"]
[WhiteTeam "Czech Republic"]
[BlackTeam "Norway"]
[WhiteTeamCountry "CZE"]
[BlackTeamCountry "NOR"]
[TimeControl "40/5400+30:1800+30"]

1. d4 {[%emt 0:00:00]} d5 {[%emt 0:00:00]} 2. c4 {[%emt 0:00:00]} e6 {[%emt 0:00:00]} 3. Nf3 {[%emt 0:00:00]} Nf6 {[%emt 0:00:04]} 4. g3 {[%emt 0:00:02]} Be7 {[%emt 0:03:19]} 5. Bg2 {[%emt 0:00:16]} c5 {[%emt 0:05:36]} 6. cxd5 {[%emt 0:05:00]} exd5 {[%emt 0:02:07]} 7. Nc3 {[%emt 0:00:29]} c4 {[%emt 0:01:36]} 8. O-O {[%emt 0:02:40]} a6 {[%emt 0:06:37]} 9. Bg5 {[%emt 0:37:02]} O-O {[%emt 0:04:33]} 10. Ne5 {[%emt 0:00:44]} Be6 {[%emt 0:13:57]} 11. b3 {[%emt 0:03:49]} Qc8 {[%emt 0:12:34]} 12. bxc4 {[%emt 0:09:18]} dxc4 {[%emt 0:00:44]} 13. Na4 {[%emt 0:02:18]} Bd8 {[%emt 0:01:01]} 14. Bxf6 {[%emt 0:06:20]} gxf6 {[%emt 0:00:36]} 15. Nf3 {[%emt 0:03:00]} Bh3 {[%emt 0:00:27]} 16. Bxh3 {[%emt 0:04:05]} Qxh3 {[%emt 0:00:05]} 17. Qc2 {[%emt 0:00:07]} b5 {[%emt 0:06:12]} 18. Nc3 {[%emt 0:00:48]} Nc6 {[%emt 0:03:23]} 19. Rad1 {[%emt 0:06:24]} Qc8 {[%emt 0:08:59]} 20. Ne4 {[%emt 0:03:49]} Be7 {[%emt 0:09:00]} 21. d5 {[%emt 0:05:20]} Ne5 {[%emt 0:02:18]} 22. d6 {[%emt 0:00:56]} Nxf3+ {[%emt 0:00:52]} 23. exf3 {[%emt 0:00:03]} Bd8 {[%emt 0:00:12]} 24. Rd5 {[%emt 0:00:38]} Qh3 {[%emt 0:05:47]} 25. Qc3 {[%emt 0:03:34]} Qe6 {[%emt 0:02:53]} 26. Rfd1 {[%emt 0:01:03]} f5 {[%emt 0:00:52]} 27. Nc5 {[%emt 0:00:28]} Qg6 {[%emt 0:00:41]} 28. a4 {[%emt 0:01:58]} f4 {[%emt 0:03:29]} 29. Nd7 {[%emt 0:01:32]} Re8 {[%emt 0:00:57]} 30. axb5 {[%emt 0:00:54]} fxg3 {[%emt 0:01:14]} 31. hxg3 {[%emt 0:00:07]} axb5 {[%emt 0:00:28]} 32. Rxb5 {[%emt 0:00:11]} Re2 {[%emt 0:02:31]} 33. Re5 {[%emt 0:01:14]} Rxe5 {[%emt 0:02:06]} 34. Nxe5 {[%emt 0:00:30]} Qg7 {[%emt 0:00:03]} 35. f4 {[%emt 0:00:31]} Bb6 {[%emt 0:00:19]} 36. d7 {[%emt 0:01:00]} Rd8 {[%emt 0:00:24]} 37. Kg2 {[%emt 0:01:13]} h5 {[%emt 0:00:35]} 38. Qxc4 {[%emt 0:00:32]} h4 {[%emt 0:00:03]} 39. Rd3 {[%emt 0:00:36]} h3+ {[%emt 0:00:12]} 40. Kxh3 {[%emt 0:00:00]} Bxf2 {[%emt 0:00:00]} 41. Kg2 {[%emt 0:01:36]} Be1 {[%emt 0:01:06]} 42. Qc8 {[%emt 0:01:49]} Qf8 {[%emt 0:00:54]} 43. Qxd8 {[%emt 0:00:49]} Qxd8 {[%emt 0:00:32]} 44. Nc6 {[%emt 0:00:06]} Ba5 {[%emt 0:00:27]} 45. Nxd8 {[%emt 0:00:05]} Bxd8 {[%emt 0:00:08]} 46. Re3 {[%emt 0:00:03]} 1-0

[Event "22nd ETCC Women 2019"]
[Site "Batumi"]
[Date "2019.10.30"]
[Round "6.20"]
[White "Caglar, Sila"]
[Black "Gueci, Tea"]
[Result "1/2-1/2"]
[ECO "B31"]
[WhiteElo "2242"]
[BlackElo "2265"]
[Annotator "NA"]
[PlyCount "203"]
[EventDate "2019.10.24"]
[EventType "team-tourn"]
[EventCountry "GEO"]
[SourceTitle "playchess.com"]
[Source "ChessBase"]
[SourceQuality "1"]
[WhiteTeam "Turkey"]
[BlackTeam "Italy"]
[WhiteTeamCountry "TUR"]
[BlackTeamCountry "ITA"]
[TimeControl "40/5400+30:1800+30"]

1. e4 {[%emt 0:00:00]} c5 {[%emt 0:00:00]} 2. Nf3 {[%emt 0:00:00]} Nc6 {[%emt 0:00:00]} 3. Bb5 {[%emt 0:00:00]} g6 {[%emt 0:00:00]} 4. O-O {[%emt 0:00:00]} Bg7 {[%emt 0:00:00]} 5. c3 {[%emt 0:00:00]} Nf6 {[%emt 0:00:02]} 6. Qa4 {[%emt 0:00:14]} Qb6 {[%emt 0:08:49]} 7. Re1 {[%emt 0:04:08]} O-O {[%emt 0:01:19]} 8. e5 {[%emt 0:12:06]} Nd5 {[%emt 0:00:44]} 9. d4 {[%emt 0:06:47]} cxd4 {[%emt 0:02:50]} 10. cxd4 {[%emt 0:00:09]} a6 {[%emt 0:01:11]} 11. Bc4 {[%emt 0:06:50]} Qb4 {[%emt 0:03:25]} 12. Qxb4 {[%emt 0:00:54]} Ndxb4 {[%emt 0:00:18]} 13. Re2 {[%emt 0:02:46]} b5 {[%emt 0:12:16]} 14. Bb3 {[%emt 0:00:33]} Na5 {[%emt 0:00:33]} 15. Bd1 {[%emt 0:06:53]} Nc4 {[%emt 0:06:35]} 16. Nbd2 {[%emt 0:08:00]} d6 {[%emt 0:08:53]} 17. Nxc4 {[%emt 0:02:14]} bxc4 {[%emt 0:00:10]} 18. b3 {[%emt 0:13:01]} c3 {[%emt 0:09:48]} 19. Bf4 {[%emt 0:19:26]} Rd8 {[%emt 0:06:18]} 20. a3 {[%emt 0:05:06]} Nd5 {[%emt 0:07:01]} 21. Bg3 {[%emt 0:00:16]} a5 {[%emt 0:02:34]} 22. Bc2 {[%emt 0:02:24]} Ba6 {[%emt 0:02:47]} 23. Re4 {[%emt 0:00:29]} Bb7 {[%emt 0:03:59]} 24. Rae1 {[%emt 0:01:53]} dxe5 {[%emt 0:06:35]} 25. dxe5 {[%emt 0:00:24]} e6 {[%emt 0:07:48]} 26. Rd4 {[%emt 0:01:40]} Bf8 {[%emt 0:00:25]} 27. Ra1 {[%emt 0:01:30]} Bc5 {[%emt 0:01:18]} 28. Rc4 {[%emt 0:00:08]} Rdc8 {[%emt 0:00:32]} 29. Ng5 {[%emt 0:01:12]} Ba6 {[%emt 0:02:16]} 30. Re4 {[%emt 0:00:58]} h6 {[%emt 0:00:56]} 31. Nf3 {[%emt 0:00:09]} Bb7 {[%emt 0:00:53]} 32. Ne1 {[%emt 0:00:45]} Ne7 {[%emt 0:01:36]} 33. Rc4 {[%emt 0:00:10]} Bd5 {[%emt 0:00:31]} 34. Ra4 {[%emt 0:00:42]} Bc6 {[%emt 0:00:43]} 35. Rf4 {[%emt 0:01:38]} g5 {[%emt 0:00:34]} 36. Rg4 {[%emt 0:00:11]} Nf5 {[%emt 0:01:04]} 37. h4 {[%emt 0:00:53]} Be7 {[%emt 0:00:48]} 38. hxg5 {[%emt 0:00:21]} h5 {[%emt 0:00:10]} 39. Rc4 {[%emt 0:00:30]} Nxg3 {[%emt 0:01:33]} 40. fxg3 {[%emt 0:00:00]} Bd5 {[%emt 0:00:00]} 41. Rxc8+ {[%emt 0:08:35]} Rxc8 {[%emt 0:01:42]} 42. Nf3 {[%emt 0:00:04]} Rb8 {[%emt 0:07:34]} 43. b4 {[%emt 0:01:31]} axb4 {[%emt 0:00:21]} 44. axb4 {[%emt 0:00:04]} Rxb4 {[%emt 0:01:52]} 45. Rb1 {[%emt 0:02:51]} Rxb1+ {[%emt 0:09:45]} 46. Bxb1 {[%emt 0:00:09]} Bb3 {[%emt 0:00:26]} 47. Ne1 {[%emt 0:00:30]} Bxg5 {[%emt 0:00:10]} 48. Kf2 {[%emt 0:00:22]} Bd2 {[%emt 0:02:17]} 49. Nc2 {[%emt 0:00:08]} Kg7 {[%emt 0:01:20]} 50. Nd4 {[%emt 0:00:49]} Bd5 {[%emt 0:01:07]} 51. Nf3 {[%emt 0:02:52]} Bb3 {[%emt 0:03:18]} 52. Nd4 {[%emt 0:00:10]} Bc4 {[%emt 0:00:02]} 53. Nf3 {[%emt 0:02:21]} Bc1 {[%emt 0:01:23]} 54. Ke1 {[%emt 0:01:27]} Be3 {[%emt 0:00:43]} 55. Be4 {[%emt 0:02:49]} Bd5 {[%emt 0:04:01]} 56. Bd3 {[%emt 0:01:07]} Bb6 {[%emt 0:00:47]} 57. Ke2 {[%emt 0:01:35]} Bc7 {[%emt 0:00:38]} 58. Ke3 {[%emt 0:01:38]} Bxf3 {[%emt 0:02:13]} 59. gxf3 {[%emt 0:00:05]} Bxe5 {[%emt 0:00:03]} 60. f4 {[%emt 0:00:04]} Bf6 {[%emt 0:01:48]} 61. Bc2 {[%emt 0:00:36]} Kh6 {[%emt 0:00:24]} 62. Kf3 {[%emt 0:00:25]} Bd8 {[%emt 0:00:51]} 63. Bd3 {[%emt 0:00:55]} Bb6 {[%emt 0:00:47]} 64. Bc2 {[%emt 0:00:06]} Kg7 {[%emt 0:00:15]} 65. Ke4 {[%emt 0:01:09]} Bf2 {[%emt 0:00:10]} 66. Kf3 {[%emt 0:00:15]} Be1 {[%emt 0:00:07]} 67. Kg2 {[%emt 0:02:22]} f6 {[%emt 0:01:25]} 68. Kh3 {[%emt 0:00:04]} Kh6 {[%emt 0:00:26]} 69. Kh4 {[%emt 0:00:10]} Bf2 {[%emt 0:00:22]} 70. Bd3 {[%emt 0:00:07]} e5 {[%emt 0:00:38]} 71. fxe5 {[%emt 0:00:08]} fxe5 {[%emt 0:00:02]} 72. Be4 {[%emt 0:00:04]} Be3 {[%emt 0:00:23]} 73. Bc2 {[%emt 0:01:59]} Bg5+ {[%emt 0:00:12]} 74. Kh3 {[%emt 0:00:03]} Be7 {[%emt 0:00:06]} 75. Kg2 {[%emt 0:00:09]} Kg5 {[%emt 0:00:06]} 76. Kf3 {[%emt 0:00:03]} Bc5 {[%emt 0:01:20]} 77. Bd3 {[%emt 0:00:55]} Kf6 {[%emt 0:01:02]} 78. Be4 {[%emt 0:00:33]} Bg1 {[%emt 0:00:51]} 79. Kg2 {[%emt 0:00:11]} Be3 {[%emt 0:00:04]} 80. Kf3 {[%emt 0:00:05]} Bd2 {[%emt 0:00:11]} 81. Ke2 {[%emt 0:00:23]} Kg5 {[%emt 0:00:36]} 82. Kf3 {[%emt 0:00:06]} Be1 {[%emt 0:00:15]} 83. Bd3 {[%emt 0:00:13]} Kf6 {[%emt 0:00:12]} 84. Be4 {[%emt 0:00:40]} Ke6 {[%emt 0:00:25]} 85. g4 {[%emt 0:01:06]} h4 {[%emt 0:01:14]} 86. g5 {[%emt 0:00:01]} h3 {[%emt 0:00:48]} 87. g6 {[%emt 0:00:04]} Kf6 {[%emt 0:00:32]} 88. Ke2 {[%emt 0:00:55]} Bd2 {[%emt 0:00:40]} 89. Kf2 {[%emt 0:00:04]} h2 {[%emt 0:00:33]} 90. Kg2 {[%emt 0:00:05]} Bf4 {[%emt 0:00:11]} 91. Kh1 {[%emt 0:00:03]} Bh6 {[%emt 0:00:50]} 92. Kxh2 {[%emt 0:00:06]} Ke6 {[%emt 0:00:02]} 93. Kg3 {[%emt 0:00:06]} Kd6 {[%emt 0:00:03]} 94. Kf3 {[%emt 0:00:48]} Kc5 {[%emt 0:00:12]} 95. Bc2 {[%emt 0:00:46]} Kd4 {[%emt 0:00:59]} 96. Bb1 {[%emt 0:00:08]} Kc4 {[%emt 0:01:08]} 97. Ke4 {[%emt 0:00:06]} Bg7 {[%emt 0:00:15]} 98. Bc2 {[%emt 0:00:04]} Bf6 {[%emt 0:00:53]} 99. Ke3 {[%emt 0:00:08]} Kb4 {[%emt 0:00:10]} 100. Kd3 {[%emt 0:00:09]} Bg7 {[%emt 0:00:42]} 101. Bd1 {[%emt 0:00:08]} e4+ {[%emt 0:00:46]} 102. Kxe4 {[%emt 0:00:04]} 1/2-1/2

[Event "22nd ETCC Women 2019"]
[Site "Batumi"]
[Date "2019.10.30"]
[Round "6.20"]
[White "Kyrkjebo, Hanna B."]
[Black "Miturova, Magdalena"]
[Result "0-1"]
[ECO "C44"]
[WhiteElo "1949"]
[BlackElo "2179"]
[Annotator "NA"]
[PlyCount "86"]
[EventDate "2019.10.24"]
[EventType "team-tourn"]
[EventCountry "GEO"]
[SourceTitle "playchess.com"]
[Source "ChessBase"]
[SourceQuality "1"]
[WhiteTeam "Norway"]
[BlackTeam "Czech Republic"]
[WhiteTeamCountry "NOR"]
[BlackTeamCountry "CZE"]
[TimeControl "40/5400+30:1800+30"]

1. e4 {[%emt 0:00:00]} e5 {[%emt 0:00:00]} 2. Nf3 {[%emt 0:00:00]} Nc6 {[%emt 0:00:00]} 3. d4 {[%emt 0:00:00]} exd4 {[%emt 0:00:00]} 4. Nxd4 {[%emt 0:00:00]} Nf6 {[%emt 0:00:02]} 5. Nc3 {[%emt 0:00:11]} Bb4 {[%emt 0:00:10]} 6. Nxc6 {[%emt 0:00:27]} bxc6 {[%emt 0:00:08]} 7. Bd3 {[%emt 0:00:19]} d5 {[%emt 0:00:29]} 8. exd5 {[%emt 0:00:22]} cxd5 {[%emt 0:00:18]} 9. O-O {[%emt 0:00:25]} O-O {[%emt 0:00:08]} 10. h3 {[%emt 0:00:16]} c6 {[%emt 0:04:43]} 11. Qf3 {[%emt 0:00:50]} Bd6 {[%emt 0:03:27]} 12. Bf4 {[%emt 0:01:28]} Rb8 {[%emt 0:02:23]} 13. b3 {[%emt 0:03:31]} Rb4 {[%emt 0:04:20]} 14. Bxd6 {[%emt 0:03:29]} Qxd6 {[%emt 0:00:08]} 15. Qg3 {[%emt 0:08:09]} Qd8 {[%emt 0:14:36]} 16. a3 {[%emt 0:06:01]} Rb7 {[%emt 0:01:56]} 17. Rfe1 {[%emt 0:10:25]} Re7 {[%emt 0:02:13]} 18. Re2 {[%emt 0:18:06]} Rxe2 {[%emt 0:03:31]} 19. Nxe2 {[%emt 0:03:06]} Re8 {[%emt 0:06:05]} 20. Qf4 {[%emt 0:09:02]} Nd7 {[%emt 0:13:22]} 21. Ng3 {[%emt 0:07:18]} Ne5 {[%emt 0:02:02]} 22. Bf1 {[%emt 0:01:45]} Qe7 {[%emt 0:06:28]} 23. Qa4 {[%emt 0:07:52]} c5 {[%emt 0:08:23]} 24. Bb5 {[%emt 0:04:43]} Rf8 {[%emt 0:01:21]} 25. Qf4 {[%emt 0:03:02]} Ng6 {[%emt 0:05:25]} 26. Qd2 {[%emt 0:01:19]} Qb7 {[%emt 0:02:48]} 27. Be2 {[%emt 0:02:34]} Be6 {[%emt 0:02:09]} 28. b4 {[%emt 0:04:30]} Rc8 {[%emt 0:03:40]} 29. Bd3 {[%emt 0:02:41]} Ne5 {[%emt 0:01:17]} 30. Bf5 {[%emt 0:01:54]} Bxf5 {[%emt 0:11:10]} 31. Nxf5 {[%emt 0:00:06]} Qd7 {[%emt 0:00:19]} 32. Ne3 {[%emt 0:01:21]} d4 {[%emt 0:00:43]} 33. bxc5 {[%emt 0:00:40]} dxe3 {[%emt 0:00:34]} 34. Qxe3 {[%emt 0:00:28]} Ng6 {[%emt 0:01:33]} 35. Re1 {[%emt 0:00:35]} Qc6 {[%emt 0:00:21]} 36. Rd1 {[%emt 0:00:32]} h6 {[%emt 0:00:35]} 37. c3 {[%emt 0:00:30]} a5 {[%emt 0:00:47]} 38. Qd2 {[%emt 0:00:30]} Qxc5 {[%emt 0:00:14]} 39. Qb2 {[%emt 0:00:25]} Qxc3 {[%emt 0:00:53]} 40. Rd8+ {[%emt 0:00:00]} Kh7 {[%emt 0:00:00]} 41. Qb6 {[%emt 0:04:40]} Qc1+ {[%emt 0:01:39]} 42. Kh2 {[%emt 0:00:35]} Rxd8 {[%emt 0:02:07]} 43. Qxd8 {[%emt 0:00:09]} Qxa3 {[%emt 0:00:07]} 0-1

[Event "22nd ETCC Women 2019"]
[Site "Batumi"]
[Date "2019.10.30"]
[Round "6.21"]
[White "Reizniece-Ozola, Dana"]
[Black "Mkrtchian, Lilit"]
[Result "1/2-1/2"]
[ECO "A33"]
[WhiteElo "2297"]
[BlackElo "2402"]
[Annotator "NA"]
[PlyCount "95"]
[EventDate "2019.10.24"]
[EventType "team-tourn"]
[EventCountry "GEO"]
[SourceTitle "playchess.com"]
[Source "ChessBase"]
[SourceQuality "1"]
[WhiteTeam "Latvia"]
[BlackTeam "Armenia"]
[WhiteTeamCountry "LAT"]
[BlackTeamCountry "ARM"]
[TimeControl "40/5400+30:1800+30"]

1. Nf3 {[%emt 0:00:00]} c5 {[%emt 0:01:05]} 2. c4 {[%emt 0:00:12]} Nc6 {[%emt 0:00:17]} 3. d4 {[%emt 0:00:32]} cxd4 {[%emt 0:00:17]} 4. Nxd4 {[%emt 0:00:08]} Nf6 {[%emt 0:01:02]} 5. Nc3 {[%emt 0:00:41]} e6 {[%emt 0:01:39]} 6. a3 {[%emt 0:00:09]} Be7 {[%emt 0:06:16]} 7. e4 {[%emt 0:00:39]} O-O {[%emt 0:00:50]} 8. Nf3 {[%emt 0:01:37]} Qc7 {[%emt 0:00:48]} 9. Be2 {[%emt 0:00:49]} b6 {[%emt 0:00:26]} 10. O-O {[%emt 0:01:44]} Bb7 {[%emt 0:00:18]} 11. Bg5 {[%emt 0:02:37]} Ne5 {[%emt 0:10:32]} 12. Nxe5 {[%emt 0:22:01]} Qxe5 {[%emt 0:00:13]} 13. Bh4 {[%emt 0:00:32]} Rfd8 {[%emt 0:20:15]} 14. Re1 {[%emt 0:17:46]} Bc6 {[%emt 0:18:05]} 15. Bg3 {[%emt 0:08:02]} Qg5 {[%emt 0:00:17]} 16. Bf3 {[%emt 0:12:48]} Rac8 {[%emt 0:01:53]} 17. Nd5 {[%emt 0:03:36]} exd5 {[%emt 0:20:15]} 18. exd5 {[%emt 0:00:06]} Bf8 {[%emt 0:00:35]} 19. dxc6 {[%emt 0:00:43]} dxc6 {[%emt 0:00:04]} 20. Qa4 {[%emt 0:04:28]} Rd2 {[%emt 0:00:27]} 21. b4 {[%emt 0:03:42]} a5 {[%emt 0:05:10]} 22. Bxc6 {[%emt 0:03:38]} axb4 {[%emt 0:00:04]} 23. axb4 {[%emt 0:00:12]} Nh5 {[%emt 0:01:30]} 24. Bd5 {[%emt 0:03:23]} Nxg3 {[%emt 0:01:01]} 25. fxg3 {[%emt 0:02:22]} Rd8 {[%emt 0:05:48]} 26. Rad1 {[%emt 0:04:25]} Rxd1 {[%emt 0:02:00]} 27. Rxd1 {[%emt 0:00:08]} Qe3+ {[%emt 0:00:23]} 28. Kh1 {[%emt 0:01:31]} Qe2 {[%emt 0:00:11]} 29. Qa1 {[%emt 0:00:28]} Rd7 {[%emt 0:01:42]} 30. b5 {[%emt 0:02:28]} Ra7 {[%emt 0:00:49]} 31. Qb1 {[%emt 0:00:19]} g6 {[%emt 0:00:20]} 32. Re1 {[%emt 0:01:30]} Qd2 {[%emt 0:00:09]} 33. Qd1 {[%emt 0:01:06]} Qxd1 {[%emt 0:00:37]} 34. Rxd1 {[%emt 0:00:00]} h5 {[%emt 0:00:15]} 35. h4 {[%emt 0:00:50]} Kg7 {[%emt 0:01:21]} 36. Rd3 {[%emt 0:01:56]} Bc5 {[%emt 0:00:13]} 37. Kh2 {[%emt 0:00:36]} Ra1 {[%emt 0:00:30]} 38. Bf3 {[%emt 0:00:32]} Bg1+ {[%emt 0:00:37]} 39. Kh3 {[%emt 0:00:02]} Bf2 {[%emt 0:00:30]} 40. Kh2 {[%emt 0:00:00]} Bg1+ {[%emt 0:00:00]} 41. Kh3 {[%emt 0:01:07]} Bf2 {[%emt 0:05:00]} 42. Rd1 {[%emt 0:06:51]} Rxd1 {[%emt 0:00:32]} 43. Bxd1 {[%emt 0:00:01]} f5 {[%emt 0:00:15]} 44. Bf3 {[%emt 0:01:00]} Kf6 {[%emt 0:00:06]} 45. Bd5 {[%emt 0:00:18]} Kg7 {[%emt 0:00:42]} 46. Bc6 {[%emt 0:00:29]} Kf6 {[%emt 0:00:05]} 47. Be8 {[%emt 0:00:40]} Kg7 {[%emt 0:00:13]} 48. Bd7 {[%emt 0:00:25]} 1/2-1/2

[Event "22nd ETCC Women 2019"]
[Site "Batumi"]
[Date "2019.10.30"]
[Round "6.21"]
[White "Goossens, Hanne"]
[Black "Nazarova, Anastasia"]
[Result "1-0"]
[ECO "B35"]
[WhiteElo "2156"]
[BlackElo "2147"]
[Annotator "NA"]
[PlyCount "119"]
[EventDate "2019.10.24"]
[EventType "team-tourn"]
[EventCountry "GEO"]
[SourceTitle "playchess.com"]
[Source "ChessBase"]
[SourceQuality "1"]
[WhiteTeam "Belgium"]
[BlackTeam "Finland"]
[WhiteTeamCountry "BEL"]
[BlackTeamCountry "FIN"]
[TimeControl "40/5400+30:1800+30"]

1. e4 {[%emt 0:00:00]} c5 {[%emt 0:00:00]} 2. Nf3 {[%emt 0:00:00]} Nc6 {[%emt 0:00:00]} 3. d4 {[%emt 0:00:00]} cxd4 {[%emt 0:00:00]} 4. Nxd4 {[%emt 0:00:00]} g6 {[%emt 0:00:00]} 5. Nc3 {[%emt 0:00:00]} Bg7 {[%emt 0:00:00]} 6. Be3 {[%emt 0:00:12]} Nf6 {[%emt 0:00:00]} 7. Bc4 {[%emt 0:00:23]} O-O {[%emt 0:00:06]} 8. Bb3 {[%emt 0:00:08]} d6 {[%emt 0:00:04]} 9. f3 {[%emt 0:00:15]} Qa5 {[%emt 0:00:06]} 10. Qd2 {[%emt 0:03:43]} Nxd4 {[%emt 0:00:14]} 11. Bxd4 {[%emt 0:00:25]} Be6 {[%emt 0:00:10]} 12. O-O-O {[%emt 0:04:12]} b5 {[%emt 0:00:47]} 13. Kb1 {[%emt 0:05:08]} b4 {[%emt 0:00:47]} 14. Ne2 {[%emt 0:04:28]} Qb5 {[%emt 0:09:35]} 15. h4 {[%emt 0:05:16]} a5 {[%emt 0:08:57]} 16. h5 {[%emt 0:10:42]} a4 {[%emt 0:22:15]} 17. Bxe6 {[%emt 0:02:54]} fxe6 {[%emt 0:00:06]} 18. hxg6 {[%emt 0:04:55]} hxg6 {[%emt 0:04:25]} 19. Rh3 {[%emt 0:11:32]} e5 {[%emt 0:22:50]} 20. Be3 {[%emt 0:01:10]} Rfc8 {[%emt 0:06:45]} 21. b3 {[%emt 0:25:48]} Kf7 {[%emt 0:14:21]} 22. Bg5 {[%emt 0:03:59]} Rc5 {[%emt 0:07:31]} 23. Rhh1 {[%emt 0:04:02]} Rac8 {[%emt 0:00:28]} 24. Rc1 {[%emt 0:00:32]} Nd7 {[%emt 0:01:10]} 25. Rh7 {[%emt 0:04:20]} Nf8 {[%emt 0:00:45]} 26. Rxg7+ {[%emt 0:04:53]} Kxg7 {[%emt 0:00:05]} 27. Bxe7 {[%emt 0:00:04]} axb3 {[%emt 0:00:57]} 28. cxb3 {[%emt 0:00:33]} Rxc1+ {[%emt 0:00:09]} 29. Nxc1 {[%emt 0:00:09]} Ne6 {[%emt 0:01:17]} 30. Qxd6 {[%emt 0:00:46]} Kf7 {[%emt 0:00:27]} 31. Bh4 {[%emt 0:01:32]} g5 {[%emt 0:00:36]} 32. Be1 {[%emt 0:01:35]} Rd8 {[%emt 0:00:32]} 33. Qxb4 {[%emt 0:01:03]} Qd7 {[%emt 0:00:30]} 34. Bc3 {[%emt 0:00:30]} Rc8 {[%emt 0:00:30]} 35. Bxe5 {[%emt 0:00:39]} Qc6 {[%emt 0:00:26]} 36. Qd2 {[%emt 0:00:31]} Rd8 {[%emt 0:00:30]} 37. Qc2 {[%emt 0:00:15]} Qb5 {[%emt 0:00:31]} 38. Bb2 {[%emt 0:00:35]} Nf4 {[%emt 0:00:32]} 39. Qc3 {[%emt 0:00:49]} Rd6 {[%emt 0:00:32]} 40. a4 {[%emt 0:00:00]} Qd7 {[%emt 0:00:00]} 41. Qg7+ {[%emt 0:02:08]} Ke8 {[%emt 0:03:04]} 42. Qxg5 {[%emt 0:02:04]} Ne6 {[%emt 0:00:57]} 43. Qg8+ {[%emt 0:03:54]} Nf8 {[%emt 0:00:04]} 44. g4 {[%emt 0:01:04]} Rd1 {[%emt 0:02:13]} 45. Qc4 {[%emt 0:00:42]} Qe6 {[%emt 0:01:35]} 46. Qb5+ {[%emt 0:02:02]} Kf7 {[%emt 0:00:56]} 47. Kc2 {[%emt 0:03:25]} Rh1 {[%emt 0:01:36]} 48. a5 {[%emt 0:01:48]} Nd7 {[%emt 0:03:37]} 49. a6 {[%emt 0:01:33]} Nb6 {[%emt 0:05:31]} 50. a7 {[%emt 0:01:09]} Qc8+ {[%emt 0:01:07]} 51. Kb1 {[%emt 0:00:16]} Rh2 {[%emt 0:02:31]} 52. Qf5+ {[%emt 0:05:41]} Qxf5 {[%emt 0:00:11]} 53. gxf5 {[%emt 0:00:04]} Na8 {[%emt 0:00:44]} 54. Nd3 {[%emt 0:01:07]} Re2 {[%emt 0:00:51]} 55. b4 {[%emt 0:00:50]} Re3 {[%emt 0:00:19]} 56. Ne5+ {[%emt 0:00:10]} Ke8 {[%emt 0:00:16]} 57. Kc2 {[%emt 0:00:24]} Re2+ {[%emt 0:00:05]} 58. Kb3 {[%emt 0:00:19]} Rh2 {[%emt 0:00:37]} 59. b5 {[%emt 0:00:51]} Rh7 {[%emt 0:00:44]} 60. f6 {[%emt 0:02:05]} 1-0

[Event "22nd ETCC Women 2019"]
[Site "Batumi"]
[Date "2019.10.30"]
[Round "6.22"]
[White "Ghukasyan, Siranush"]
[Black "Rogule, Laura"]
[Result "0-1"]
[ECO "B90"]
[WhiteElo "2261"]
[BlackElo "2269"]
[Annotator "NA"]
[PlyCount "106"]
[EventDate "2019.10.24"]
[EventType "team-tourn"]
[EventCountry "GEO"]
[SourceTitle "playchess.com"]
[Source "ChessBase"]
[SourceQuality "1"]
[WhiteTeam "Armenia"]
[BlackTeam "Latvia"]
[WhiteTeamCountry "ARM"]
[BlackTeamCountry "LAT"]
[TimeControl "40/5400+30:1800+30"]

1. e4 {[%emt 0:00:00]} c5 {[%emt 0:00:00]} 2. Nf3 {[%emt 0:00:00]} d6 {[%emt 0:00:00]} 3. d4 {[%emt 0:00:00]} cxd4 {[%emt 0:00:00]} 4. Nxd4 {[%emt 0:00:00]} Nf6 {[%emt 0:00:05]} 5. Nc3 {[%emt 0:00:00]} a6 {[%emt 0:00:12]} 6. Be3 {[%emt 0:00:00]} e5 {[%emt 0:00:39]} 7. Nf3 {[%emt 0:00:00]} Qc7 {[%emt 0:02:25]} 8. a4 {[%emt 0:00:35]} Be6 {[%emt 0:05:31]} 9. Be2 {[%emt 0:01:40]} Nbd7 {[%emt 0:11:33]} 10. O-O {[%emt 0:04:14]} h6 {[%emt 0:05:27]} 11. Ne1 {[%emt 0:12:34]} Nb6 {[%emt 0:14:37]} 12. Bxb6 {[%emt 0:25:41]} Qxb6 {[%emt 0:00:04]} 13. Nd5 {[%emt 0:00:34]} Bxd5 {[%emt 0:13:06]} 14. exd5 {[%emt 0:00:05]} Be7 {[%emt 0:05:35]} 15. Ra3 {[%emt 0:03:44]} O-O {[%emt 0:05:35]} 16. Rb3 {[%emt 0:00:51]} Qc7 {[%emt 0:00:46]} 17. Kh1 {[%emt 0:06:49]} Nd7 {[%emt 0:04:40]} 18. f4 {[%emt 0:04:03]} exf4 {[%emt 0:04:08]} 19. Rxf4 {[%emt 0:00:44]} Nc5 {[%emt 0:05:15]} 20. Ra3 {[%emt 0:03:59]} Bg5 {[%emt 0:00:43]} 21. Rf1 {[%emt 0:01:16]} Rae8 {[%emt 0:05:41]} 22. Bg4 {[%emt 0:08:42]} Re4 {[%emt 0:05:11]} 23. a5 {[%emt 0:05:22]} Rfe8 {[%emt 0:05:18]} 24. Bf5 {[%emt 0:01:58]} Ra4 {[%emt 0:04:19]} 25. Rxa4 {[%emt 0:06:48]} Nxa4 {[%emt 0:00:01]} 26. b3 {[%emt 0:00:45]} Nc3 {[%emt 0:00:21]} 27. Qd3 {[%emt 0:02:22]} Qxa5 {[%emt 0:01:23]} 28. Nf3 {[%emt 0:03:34]} Bf6 {[%emt 0:00:25]} 29. Bh3 {[%emt 0:05:12]} Nxd5 {[%emt 0:00:41]} 30. Qf5 {[%emt 0:01:08]} Qc5 {[%emt 0:00:19]} 31. Qd7 {[%emt 0:00:38]} Rd8 {[%emt 0:00:28]} 32. Qxb7 {[%emt 0:00:20]} Ne3 {[%emt 0:00:23]} 33. Rg1 {[%emt 0:00:30]} Qxc2 {[%emt 0:00:20]} 34. Qb6 {[%emt 0:01:42]} Nd1 {[%emt 0:00:23]} 35. Rf1 {[%emt 0:00:34]} Qd3 {[%emt 0:00:24]} 36. Re1 {[%emt 0:00:10]} d5 {[%emt 0:00:34]} 37. Ne5 {[%emt 0:00:47]} Qd2 {[%emt 0:00:40]} 38. Rf1 {[%emt 0:00:02]} d4 {[%emt 0:00:54]} 39. Ng4 {[%emt 0:00:16]} Bg5 {[%emt 0:00:40]} 40. Qb7 {[%emt 0:00:00]} Rf8 {[%emt 0:00:00]} 41. Qf3 {[%emt 0:04:45]} Ne3 {[%emt 0:04:08]} 42. Nxe3 {[%emt 0:00:10]} dxe3 {[%emt 0:17:38]} 43. Bg4 {[%emt 0:00:29]} a5 {[%emt 0:02:34]} 44. Qe4 {[%emt 0:01:51]} Qb2 {[%emt 0:04:03]} 45. Qc4 {[%emt 0:00:28]} Qe5 {[%emt 0:01:27]} 46. Bh5 {[%emt 0:01:17]} Bf6 {[%emt 0:00:49]} 47. Bf3 {[%emt 0:00:38]} Rd8 {[%emt 0:00:09]} 48. Re1 {[%emt 0:01:01]} g6 {[%emt 0:00:35]} 49. Qe2 {[%emt 0:00:26]} Rc8 {[%emt 0:01:02]} 50. Qa6 {[%emt 0:02:05]} Rc2 {[%emt 0:01:13]} 51. Qb6 {[%emt 0:01:01]} Qc3 {[%emt 0:01:09]} 52. Qb8+ {[%emt 0:02:52]} Kg7 {[%emt 0:00:12]} 53. Qg3 {[%emt 0:00:05]} Be5 {[%emt 0:00:55]} 0-1